[Event "DVM U14 2021"]
[Site "Willingen"]
[Date "2022.08.15"]
[Round "6"]
[White "Spranger, Tobias"]
[Black "Vollbehr, Bjarne"]
[Result "0-1"]
[ECO "D93"]
[WhiteElo "1522"]
[BlackElo "1654"]
[Annotator "NA RC"]
[PlyCount "90"]
[EventDate "2022.08.12"]
[EventType "team-tourn"]
[EventRounds "7"]
[EventCountry "GER"]
[SourceTitle "playchess.com"]
[Source "ChessBase"]
[SourceQuality "1"]
[TimeControl "40/5400+30:1800+30"]

1. d4 {[%emt 0:00:02]} Nf6 {[%emt 0:00:21]} 2. c4 {[%emt 0:00:04]} g6 {[%emt 0:00:05]} 3. Nc3 {[%emt 0:00:03]} d5 {[%emt 0:00:03]} 4. Nf3 {[%emt 0:00:16]} Bg7 {[%emt 0:00:18]} 5. Bf4 {[%emt 0:02:03]} c6 {[%emt 0:00:57]} 6. e3 {[%emt 0:00:21]} O-O {[%emt 0:01:05]} 7. Be2 {[%emt 0:00:15]} Bg4 {[%emt 0:04:11]} 8. O-O {[%emt 0:00:39]} Nbd7 {[%emt 0:01:37]} 9. Rc1 {[%emt 0:02:54]} Rc8 {[%emt 0:01:17]} 10. h3 {[%emt 0:03:08]} Bxf3 {[%emt 0:00:36]} 11. Bxf3 {[%emt 0:00:21]} dxc4 {[%emt 0:00:55]} 12. a4 {[%emt 0:08:05]} a6 {[%emt 0:01:21]} 13. b3 {[%emt 0:03:32]} cxb3 {[%emt 0:03:05]} 14. Qxb3 {[%emt 0:00:10]} b5 {[%emt 0:04:03]} 15. axb5 {[%emt 0:00:37]} axb5 {[%emt 0:00:10]} 16. Ra1 {[%emt 0:00:09]} Qb6 {[%emt 0:01:35]} 17. Rfc1 {[%emt 0:01:50]} Rfe8 {[%emt 0:08:05]} 18. Ra2 {[%emt 0:07:56]} e5 {[%emt 0:04:12]} 19. dxe5 {[%emt 0:01:23]} Nxe5 {[%emt 0:00:48]} 20. Be2 {[%emt 0:00:32]} Ned7 {[%emt 0:03:17]} 21. Rd1 {[%emt 0:05:33]} Nc5 {[%emt 0:02:08]} 22. Na4 {[%emt 0:03:35]} Nxa4 {[%emt 0:01:21]} 23. Rxa4 {[%emt 0:00:13]} Nd5 {[%emt 0:00:35]} 24. Rxd5 {[%emt 0:05:37]} cxd5 {[%emt 0:00:19]} 25. Bxb5 {[%emt 0:01:38]} Red8 {[%emt 0:05:43]} 26. Rb4 {[%emt 0:01:41]} Rc3 {[%emt 0:01:52]} 27. Qa4 {[%emt 0:02:51]} Bf8 {[%emt 0:04:13]} 28. Rb1 {[%emt 0:03:46]} Bd6 {[%emt 0:03:31]} 29. Bxd6 {[%emt 0:10:21]} Qxd6 {[%emt 0:00:54]} 30. g3 {[%emt 0:01:35]} Rb8 {[%emt 0:12:01]} 31. Rd1 {[%emt 0:02:09]} Ra3 {[%emt 0:01:15]} 32. Qd4 {[%emt 0:14:42]} Rxb5 {[%emt 0:00:18]} 33. Rc1 {[%emt 0:01:33]} Rb8 {[%emt 0:00:32]} 34. Rc5 {[%emt 0:00:56]} Rd8 {[%emt 0:00:17]} 35. Rc1 {[%emt 0:00:45]} Raa8 {[%emt 0:00:53]} 36. Rd1 {[%emt 0:00:51]} Qe6 {[%emt 0:00:56]} 37. Qb2 {[%emt 0:01:53]} Qxh3 {[%emt 0:00:48]} 38. Rc1 {[%emt 0:01:21]} h5 {[%emt 0:01:33]} 39. Rc7 {[%emt 0:00:16]} Qe6 {[%emt 0:00:31]} 40. Rc1 {[%emt 0:00:12]} h4 {[%emt 0:01:07]} 41. Kg2 {[%emt 0:31:38]} d4 {[%emt 0:31:32]} 42. Rh1 {[%emt 0:00:46]} Ra2 {[%emt 0:01:54]} 43. Qb1 {[%emt 0:01:36]} dxe3 {[%emt 0:00:59]} 44. Rxh4 {[%emt 0:00:43]} Rxf2+ {[%emt 0:00:24]} 45. Kg1 {[%emt 0:00:30]} Qd6 {[%emt 0:00:13]} 0-1

[Event "DVM U14 2021"]
[Site "Willingen"]
[Date "2022.08.15"]
[Round "6"]
[White "Apel, Linus"]
[Black "Bade, Deniz"]
[Result "1/2-1/2"]
[ECO "B33"]
[WhiteElo "1488"]
[BlackElo "1414"]
[Annotator "NA RC"]
[PlyCount "56"]
[EventDate "2022.08.12"]
[EventType "team-tourn"]
[EventRounds "7"]
[EventCountry "GER"]
[SourceTitle "playchess.com"]
[Source "ChessBase"]
[SourceQuality "1"]
[TimeControl "40/5400+30:1800+30"]

1. e4 {[%emt 0:00:04]} c5 {[%emt 0:00:00]} 2. Nf3 {[%emt 0:00:04]} Nc6 {[%emt 0:00:00]} 3. d4 {[%emt 0:00:03]} cxd4 {[%emt 0:00:00]} 4. Nxd4 {[%emt 0:00:05]} Nf6 {[%emt 0:00:00]} 5. Nc3 {[%emt 0:00:04]} e5 {[%emt 0:00:06]} 6. Ndb5 {[%emt 0:00:06]} d6 {[%emt 0:00:30]} 7. Bg5 {[%emt 0:00:05]} a6 {[%emt 0:00:06]} 8. Na3 {[%emt 0:00:05]} b5 {[%emt 0:00:16]} 9. Nd5 {[%emt 0:00:05]} Be7 {[%emt 0:00:34]} 10. Bxf6 {[%emt 0:00:18]} Bxf6 {[%emt 0:02:19]} 11. c3 {[%emt 0:00:28]} O-O {[%emt 0:01:03]} 12. Be2 {[%emt 0:01:24]} Bg5 {[%emt 0:05:23]} 13. O-O {[%emt 0:02:15]} Rb8 {[%emt 0:01:14]} 14. Nc2 {[%emt 0:00:17]} Kh8 {[%emt 0:14:31]} 15. Nce3 {[%emt 0:19:29]} Ne7 {[%emt 0:04:24]} 16. Nxe7 {[%emt 0:00:28]} Qxe7 {[%emt 0:00:24]} 17. Nd5 {[%emt 0:00:12]} Qb7 {[%emt 0:07:40]} 18. f4 {[%emt 0:04:41]} exf4 {[%emt 0:14:08]} 19. Qd4 {[%emt 0:17:54]} Re8 {[%emt 0:01:46]} 20. Bd3 {[%emt 0:05:25]} Be6 {[%emt 0:01:17]} 21. Nxf4 {[%emt 0:02:14]} Qb6 {[%emt 0:01:18]} 22. Qxb6 {[%emt 0:00:04]} Rxb6 {[%emt 0:00:40]} 23. Nxe6 {[%emt 0:01:29]} fxe6 {[%emt 0:02:05]} 24. Rf7 {[%emt 0:02:20]} Kg8 {[%emt 0:01:30]} 25. Rf3 {[%emt 0:02:35]} Rc8 {[%emt 0:00:50]} 26. Raf1 {[%emt 0:00:36]} Bf6 {[%emt 0:04:42]} 27. Rb1 {[%emt 0:02:32]} a5 {[%emt 0:03:43]} 28. g3 {[%emt 0:08:44]} b4 {[%emt 0:01:01]} 1/2-1/2

[Event "DVM U14 2021"]
[Site "Willingen"]
[Date "2022.08.15"]
[Round "6"]
[White "Fock, Madiha"]
[Black "Prinzen, Siri Marleen"]
[Result "0-1"]
[ECO "B15"]
[WhiteElo "1472"]
[BlackElo "1801"]
[Annotator "NA RC"]
[PlyCount "48"]
[EventDate "2022.08.12"]
[EventType "team-tourn"]
[EventRounds "7"]
[EventCountry "GER"]
[SourceTitle "playchess.com"]
[Source "ChessBase"]
[SourceQuality "1"]
[TimeControl "40/5400+30:1800+30"]

1. e4 {[%emt 0:00:01]} c6 {[%emt 0:00:05]} 2. d4 {[%emt 0:00:04]} d5 {[%emt 0:00:04]} 3. Nd2 {[%emt 0:00:04]} dxe4 {[%emt 0:00:05]} 4. Nxe4 {[%emt 0:00:06]} Nf6 {[%emt 0:00:04]} 5. Nxf6+ {[%emt 0:00:08]} exf6 {[%emt 0:00:06]} 6. Nf3 {[%emt 0:00:29]} Bd6 {[%emt 0:00:58]} 7. Bd3 {[%emt 0:00:28]} O-O {[%emt 0:04:27]} 8. O-O {[%emt 0:01:11]} Be6 {[%emt 0:01:22]} 9. c3 {[%emt 0:04:43]} Nd7 {[%emt 0:01:41]} 10. Qc2 {[%emt 0:02:39]} g6 {[%emt 0:01:20]} 11. h3 {[%emt 0:09:40]} Re8 {[%emt 0:03:10]} 12. Bh6 {[%emt 0:02:49]} Bf8 {[%emt 0:02:26]} 13. Bxf8 {[%emt 0:02:16]} Nxf8 {[%emt 0:00:33]} 14. Rfe1 {[%emt 0:05:36]} Bd5 {[%emt 0:05:30]} 15. Be4 {[%emt 0:04:42]} Bxe4 {[%emt 0:02:24]} 16. Rxe4 {[%emt 0:00:07]} Rxe4 {[%emt 0:00:06]} 17. Qxe4 {[%emt 0:00:03]} Ne6 {[%emt 0:01:07]} 18. Rd1 {[%emt 0:06:59]} Qd5 {[%emt 0:01:36]} 19. Qb1 {[%emt 0:06:05]} Rd8 {[%emt 0:02:09]} 20. b3 {[%emt 0:04:45]} Nf4 {[%emt 0:01:31]} 21. c4 {[%emt 0:01:55]} Nxh3+ {[%emt 0:08:33]} 22. Kf1 {[%emt 0:01:27]} Qh5 {[%emt 0:00:27]} 23. Ng1 {[%emt 0:07:34]} Nf4 {[%emt 0:03:37]} 24. Qe4 {[%emt 0:00:57]} Qxd1+ {[%emt 0:00:15]} 0-1

[Event "DVM U14 2021"]
[Site "Willingen"]
[Date "2022.08.15"]
[Round "6"]
[White "Le, Dinh An"]
[Black "Wagner, Anton"]
[Result "0-1"]
[ECO "E01"]
[WhiteElo "1470"]
[BlackElo "1479"]
[Annotator "NA RC"]
[PlyCount "66"]
[EventDate "2022.08.12"]
[EventType "team-tourn"]
[EventRounds "7"]
[EventCountry "GER"]
[SourceTitle "playchess.com"]
[Source "ChessBase"]
[SourceQuality "1"]
[TimeControl "40/5400+30:1800+30"]

1. d4 {[%emt 0:00:05]} Nf6 {[%emt 0:00:03]} 2. Nf3 {[%emt 0:00:16]} d5 {[%emt 0:00:12]} 3. g3 {[%emt 0:00:20]} e6 {[%emt 0:00:05]} 4. Bg2 {[%emt 0:00:38]} c5 {[%emt 0:00:11]} 5. O-O {[%emt 0:00:40]} Nc6 {[%emt 0:02:11]} 6. c4 {[%emt 0:01:58]} cxd4 {[%emt 0:03:43]} 7. Nxd4 {[%emt 0:01:14]} Bc5 {[%emt 0:06:03]} 8. Nxc6 {[%emt 0:00:56]} bxc6 {[%emt 0:00:08]} 9. Qc2 {[%emt 0:00:46]} Bb6 {[%emt 0:07:29]} 10. Rd1 {[%emt 0:01:45]} Bb7 {[%emt 0:08:48]} 11. Nc3 {[%emt 0:02:56]} h6 {[%emt 0:16:54]} 12. Bf4 {[%emt 0:04:56]} Bc7 {[%emt 0:05:34]} 13. cxd5 {[%emt 0:10:51]} exd5 {[%emt 0:09:34]} 14. Bxc7 {[%emt 0:01:28]} Qxc7 {[%emt 0:00:41]} 15. Nxd5 {[%emt 0:00:08]} Nxd5 {[%emt 0:02:11]} 16. Bxd5 {[%emt 0:00:36]} O-O {[%emt 0:01:27]} 17. Rac1 {[%emt 0:00:24]} Rac8 {[%emt 0:00:34]} 18. b3 {[%emt 0:01:27]} Rfd8 {[%emt 0:02:45]} 19. Bg2 {[%emt 0:02:04]} Rxd1+ {[%emt 0:00:50]} 20. Rxd1 {[%emt 0:00:25]} c5 {[%emt 0:03:31]} 21. Bxb7 {[%emt 0:01:39]} Qxb7 {[%emt 0:00:11]} 22. Qf5 {[%emt 0:00:30]} g6 {[%emt 0:05:33]} 23. Qd7 {[%emt 0:02:59]} Rc7 {[%emt 0:00:51]} 24. Qe8+ {[%emt 0:01:21]} Kg7 {[%emt 0:01:11]} 25. Rd8 {[%emt 0:00:10]} Kf6 {[%emt 0:00:14]} 26. Qh8+ {[%emt 0:02:00]} Kf5 {[%emt 0:07:50]} 27. Qxh6 {[%emt 0:01:42]} Qe4 {[%emt 0:01:10]} 28. Qd2 {[%emt 0:01:01]} Re7 {[%emt 0:00:43]} 29. Rd5+ {[%emt 0:01:10]} Kf6 {[%emt 0:01:03]} 30. Qc3+ {[%emt 0:02:36]} Ke6 {[%emt 0:00:25]} 31. Qc4 {[%emt 0:01:11]} Qxd5 {[%emt 0:00:31]} 32. Qg4+ {[%emt 0:00:59]} Kd6 {[%emt 0:00:42]} 33. Qf4+ {[%emt 0:00:11]} Qe5 {[%emt 0:02:03]} 0-1

[Event "DVM U14 2021"]
[Site "Willingen"]
[Date "2022.08.15"]
[Round "6"]
[White "Grozea, Nicolae Theodor"]
[Black "Rudolph, Alexander"]
[Result "0-1"]
[ECO "B42"]
[WhiteElo "1467"]
[BlackElo "1417"]
[Annotator "NA RC"]
[PlyCount "76"]
[EventDate "2022.08.12"]
[EventType "team-tourn"]
[EventRounds "7"]
[EventCountry "GER"]
[SourceTitle "playchess.com"]
[Source "ChessBase"]
[SourceQuality "1"]
[TimeControl "40/5400+30:1800+30"]

1. e4 {[%emt 0:00:03]} c5 {[%emt 0:01:02]} 2. Nf3 {[%emt 0:00:10]} e6 {[%emt 0:01:13]} 3. d4 {[%emt 0:00:09]} cxd4 {[%emt 0:01:47]} 4. Nxd4 {[%emt 0:00:05]} a6 {[%emt 0:00:59]} 5. Bd3 {[%emt 0:00:26]} Qc7 {[%emt 0:03:30]} 6. Qe2 {[%emt 0:08:56]} Nf6 {[%emt 0:06:54]} 7. e5 {[%emt 0:05:02]} Nd5 {[%emt 0:01:01]} 8. a3 {[%emt 0:07:00]} d6 {[%emt 0:03:01]} 9. c4 {[%emt 0:07:07]} dxe5 {[%emt 0:00:37]} 10. Nxe6 {[%emt 0:24:24]} Bxe6 {[%emt 0:01:09]} 11. cxd5 {[%emt 0:00:15]} Qxc1+ {[%emt 0:00:07]} 12. Qd1 {[%emt 0:02:32]} Qxd1+ {[%emt 0:00:31]} 13. Kxd1 {[%emt 0:00:09]} Bxd5 {[%emt 0:00:04]} 14. f3 {[%emt 0:02:03]} Nc6 {[%emt 0:00:43]} 15. Nc3 {[%emt 0:00:32]} Bb3+ {[%emt 0:00:09]} 16. Ke2 {[%emt 0:00:22]} Nd4+ {[%emt 0:00:10]} 17. Kf1 {[%emt 0:04:07]} Bc2 {[%emt 0:01:52]} 18. Bc4 {[%emt 0:00:47]} f6 {[%emt 0:01:26]} 19. Kf2 {[%emt 0:03:52]} Bc5 {[%emt 0:01:15]} 20. Kf1 {[%emt 0:06:08]} Rd8 {[%emt 0:02:50]} 21. Re1 {[%emt 0:07:29]} b5 {[%emt 0:00:02]} 22. Be2 {[%emt 0:03:24]} Nxe2 {[%emt 0:00:06]} 23. Nxe2 {[%emt 0:00:27]} Bd3 {[%emt 0:00:02]} 24. g3 {[%emt 0:00:50]} Bxe2+ {[%emt 0:00:15]} 25. Rxe2 {[%emt 0:00:13]} Rd3 {[%emt 0:00:00]} 26. Rc2 {[%emt 0:00:30]} Bb6 {[%emt 0:00:49]} 27. Ke2 {[%emt 0:03:48]} Re3+ {[%emt 0:00:06]} 28. Kd1 {[%emt 0:03:03]} Ke7 {[%emt 0:00:24]} 29. f4 {[%emt 0:01:22]} Rd8+ {[%emt 0:00:15]} 30. Kc1 {[%emt 0:00:21]} e4 {[%emt 0:00:16]} 31. Rc6 {[%emt 0:00:59]} Rd6 {[%emt 0:00:23]} 32. Rc8 {[%emt 0:00:41]} Red3 {[%emt 0:02:06]} 33. Kc2 {[%emt 0:03:08]} e3 {[%emt 0:01:04]} 34. Re1 {[%emt 0:01:46]} e2 {[%emt 0:00:05]} 35. Rxe2+ {[%emt 0:00:45]} Re3 {[%emt 0:00:48]} 36. Rg2 {[%emt 0:01:49]} Rde6 {[%emt 0:00:57]} 37. Rg1 {[%emt 0:01:37]} Re2+ {[%emt 0:00:05]} 38. Kb3 {[%emt 0:00:30]} Bxg1 {[%emt 0:00:03]} 0-1

[Event "DVM U14 2021"]
[Site "Willingen"]
[Date "2022.08.15"]
[Round "6"]
[White "Marcziter, Alex"]
[Black "Walter, Romeo"]
[Result "1-0"]
[ECO "B19"]
[WhiteElo "1466"]
[BlackElo "1197"]
[Annotator "NA RC"]
[PlyCount "107"]
[EventDate "2022.08.12"]
[EventType "team-tourn"]
[EventRounds "7"]
[EventCountry "GER"]
[SourceTitle "playchess.com"]
[Source "ChessBase"]
[SourceQuality "1"]
[TimeControl "40/5400+30:1800+30"]

1. e4 {[%emt 0:00:07]} c6 {[%emt 0:00:03]} 2. d4 {[%emt 0:00:04]} d5 {[%emt 0:00:39]} 3. Nd2 {[%emt 0:00:03]} dxe4 {[%emt 0:00:16]} 4. Nxe4 {[%emt 0:00:05]} Bf5 {[%emt 0:00:24]} 5. Ng3 {[%emt 0:00:08]} Bg6 {[%emt 0:00:56]} 6. h4 {[%emt 0:00:03]} h6 {[%emt 0:00:49]} 7. h5 {[%emt 0:00:06]} Bh7 {[%emt 0:00:49]} 8. Nf3 {[%emt 0:00:05]} Nd7 {[%emt 0:00:47]} 9. Bd3 {[%emt 0:00:04]} Bxd3 {[%emt 0:00:21]} 10. Qxd3 {[%emt 0:00:17]} e6 {[%emt 0:01:16]} 11. Bf4 {[%emt 0:00:31]} Ngf6 {[%emt 0:01:55]} 12. O-O-O {[%emt 0:02:45]} Nd5 {[%emt 0:02:35]} 13. Bd2 {[%emt 0:03:48]} c5 {[%emt 0:03:52]} 14. Kb1 {[%emt 0:04:16]} Qb6 {[%emt 0:03:32]} 15. c4 {[%emt 0:09:19]} Nb4 {[%emt 0:08:57]} 16. Qe2 {[%emt 0:08:36]} cxd4 {[%emt 0:02:17]} 17. Nxd4 {[%emt 0:10:46]} Nc6 {[%emt 0:04:16]} 18. Be3 {[%emt 0:03:02]} Bc5 {[%emt 0:03:35]} 19. Nc2 {[%emt 0:10:15]} Nf6 {[%emt 0:08:36]} 20. Nf5 {[%emt 0:06:39]} Bxe3 {[%emt 0:08:33]} 21. Nd6+ {[%emt 0:01:41]} Ke7 {[%emt 0:02:02]} 22. Nxe3 {[%emt 0:01:13]} g6 {[%emt 0:06:31]} 23. hxg6 {[%emt 0:01:45]} fxg6 {[%emt 0:05:29]} 24. Rhe1 {[%emt 0:08:58]} Kf8 {[%emt 0:04:45]} 25. Qf3 {[%emt 0:01:40]} Kg7 {[%emt 0:02:18]} 26. Ne4 {[%emt 0:06:48]} Rhf8 {[%emt 0:01:45]} 27. Nxf6 {[%emt 0:01:21]} Nd4 {[%emt 0:02:57]} 28. Qe4 {[%emt 0:04:12]} Rad8 {[%emt 0:01:33]} 29. Nfg4 {[%emt 0:11:32]} h5 {[%emt 0:01:28]} 30. Ne5 {[%emt 0:00:01]} Rf6 {[%emt 0:01:49]} 31. f3 {[%emt 0:01:22]} Qc5 {[%emt 0:01:25]} 32. Nc2 {[%emt 0:00:44]} Nc6 {[%emt 0:01:16]} 33. Rxd8 {[%emt 0:00:02]} Nxd8 {[%emt 0:00:19]} 34. Nd7 {[%emt 0:01:58]} Qg5 {[%emt 0:00:28]} 35. Nxf6 {[%emt 0:00:40]} Kxf6 {[%emt 0:01:13]} 36. f4 {[%emt 0:00:58]} Qh4 {[%emt 0:00:26]} 37. Qe5+ {[%emt 0:00:15]} Kf7 {[%emt 0:00:45]} 38. Qg5 {[%emt 0:00:39]} Qxg5 {[%emt 0:00:08]} 39. fxg5 {[%emt 0:00:07]} Nc6 {[%emt 0:00:25]} 40. b4 {[%emt 0:01:49]} Nb8 {[%emt 0:00:29]} 41. Kb2 {[%emt 0:30:05]} Nd7 {[%emt 0:30:27]} 42. Kc3 {[%emt 0:00:15]} e5 {[%emt 0:00:27]} 43. c5 {[%emt 0:00:09]} Ke6 {[%emt 0:00:32]} 44. Kc4 {[%emt 0:00:49]} Kf5 {[%emt 0:00:22]} 45. Kd5 {[%emt 0:00:06]} Kxg5 {[%emt 0:00:14]} 46. Kd6 {[%emt 0:01:33]} Nf6 {[%emt 0:00:38]} 47. Rxe5+ {[%emt 0:00:22]} Kf4 {[%emt 0:00:34]} 48. Re7 {[%emt 0:00:42]} Ne4+ {[%emt 0:00:15]} 49. Kc7 {[%emt 0:00:21]} Nc3 {[%emt 0:00:21]} 50. Kxb7 {[%emt 0:01:02]} Kg3 {[%emt 0:00:22]} 51. Rg7 {[%emt 0:00:09]} Kxg2 {[%emt 0:00:09]} 52. Rxg6+ {[%emt 0:00:06]} Kh3 {[%emt 0:00:17]} 53. c6 {[%emt 0:00:42]} Nb5 {[%emt 0:00:17]} 54. c7 {[%emt 0:00:00]} 1-0

[Event "DVM U14 2021"]
[Site "Willingen"]
[Date "2022.08.15"]
[Round "6"]
[White "Yue, Qihang"]
[Black "Finck, Jonathan"]
[Result "0-1"]
[ECO "D51"]
[WhiteElo "1401"]
[BlackElo "1424"]
[Annotator "NA RC"]
[PlyCount "116"]
[EventDate "2022.08.12"]
[EventType "team-tourn"]
[EventRounds "7"]
[EventCountry "GER"]
[SourceTitle "playchess.com"]
[Source "ChessBase"]
[SourceQuality "1"]
[TimeControl "40/5400+30:1800+30"]

1. d4 {[%emt 0:00:29]} d5 {[%emt 0:00:00]} 2. c4 {[%emt 0:04:36]} e6 {[%emt 0:00:01]} 3. Nc3 {[%emt 0:00:06]} Nf6 {[%emt 0:00:41]} 4. cxd5 {[%emt 0:00:18]} exd5 {[%emt 0:01:18]} 5. Bg5 {[%emt 0:01:13]} Nbd7 {[%emt 0:01:14]} 6. e3 {[%emt 0:00:32]} Bb4 {[%emt 0:01:45]} 7. Bd3 {[%emt 0:00:26]} O-O {[%emt 0:02:27]} 8. Qc2 {[%emt 0:00:15]} h6 {[%emt 0:05:47]} 9. Bf4 {[%emt 0:01:28]} b6 {[%emt 0:03:53]} 10. Nf3 {[%emt 0:00:39]} Re8 {[%emt 0:02:26]} 11. a3 {[%emt 0:00:23]} Bf8 {[%emt 0:04:18]} 12. h3 {[%emt 0:01:13]} a6 {[%emt 0:00:57]} 13. g4 {[%emt 0:03:56]} c5 {[%emt 0:00:38]} 14. g5 {[%emt 0:01:43]} Nh5 {[%emt 0:16:25]} 15. Nxd5 {[%emt 0:02:12]} Nxf4 {[%emt 0:00:58]} 16. Nxf4 {[%emt 0:01:52]} Bb7 {[%emt 0:07:50]} 17. Bh7+ {[%emt 0:00:18]} Kh8 {[%emt 0:00:53]} 18. Nh4 {[%emt 0:06:56]} Bxh1 {[%emt 0:17:13]} 19. g6 {[%emt 0:17:49]} Qxh4 {[%emt 0:03:59]} 20. gxf7 {[%emt 0:06:43]} Qxf4 {[%emt 0:01:10]} 21. fxe8=Q {[%emt 0:00:08]} Rxe8 {[%emt 0:01:29]} 22. O-O-O {[%emt 0:01:33]} Be4 {[%emt 0:00:41]} 23. exf4 {[%emt 0:00:10]} Bxc2 {[%emt 0:00:30]} 24. Bxc2 {[%emt 0:00:48]} cxd4 {[%emt 0:00:10]} 25. Rxd4 {[%emt 0:00:33]} Nc5 {[%emt 0:03:22]} 26. b4 {[%emt 0:02:04]} Ne6 {[%emt 0:01:52]} 27. Re4 {[%emt 0:00:36]} Nc7 {[%emt 0:01:52]} 28. Re3 {[%emt 0:01:36]} Bd6 {[%emt 0:01:00]} 29. Rxe8+ {[%emt 0:00:11]} Nxe8 {[%emt 0:00:46]} 30. f5 {[%emt 0:00:20]} Kg8 {[%emt 0:00:40]} 31. Kb2 {[%emt 0:00:27]} Kf7 {[%emt 0:01:15]} 32. Bd3 {[%emt 0:01:53]} a5 {[%emt 0:01:23]} 33. bxa5 {[%emt 0:00:07]} bxa5 {[%emt 0:00:14]} 34. a4 {[%emt 0:00:16]} Bb4 {[%emt 0:01:42]} 35. Bc4+ {[%emt 0:00:10]} Kf6 {[%emt 0:00:54]} 36. Kc2 {[%emt 0:00:16]} Nd6 {[%emt 0:00:36]} 37. Bf1 {[%emt 0:00:16]} Kxf5 {[%emt 0:00:35]} 38. Kd3 {[%emt 0:00:20]} Bc5 {[%emt 0:00:21]} 39. f3 {[%emt 0:00:24]} Kf4 {[%emt 0:01:23]} 40. h4 {[%emt 0:00:36]} Kxf3 {[%emt 0:00:20]} 41. h5 {[%emt 0:30:22]} Kf4 {[%emt 0:30:37]} 42. Be2 {[%emt 0:00:54]} Nf5 {[%emt 0:00:23]} 43. Kc4 {[%emt 0:00:13]} Bb4 {[%emt 0:00:26]} 44. Kd5 {[%emt 0:01:13]} Ng3 {[%emt 0:00:29]} 45. Bd1 {[%emt 0:00:21]} Kg5 {[%emt 0:00:24]} 46. Ke5 {[%emt 0:00:14]} Nxh5 {[%emt 0:00:27]} 47. Bxh5 {[%emt 0:00:02]} Kxh5 {[%emt 0:00:14]} 48. Kf4 {[%emt 0:00:09]} g5+ {[%emt 0:00:08]} 49. Kg3 {[%emt 0:00:09]} Kg6 {[%emt 0:00:17]} 50. Kh2 {[%emt 0:00:07]} Kf5 {[%emt 0:00:06]} 51. Kh1 {[%emt 0:00:05]} Kf4 {[%emt 0:00:11]} 52. Kh2 {[%emt 0:00:09]} Kf3 {[%emt 0:00:22]} 53. Kg1 {[%emt 0:00:10]} g4 {[%emt 0:00:11]} 54. Kf1 {[%emt 0:00:12]} g3 {[%emt 0:00:22]} 55. Kg1 {[%emt 0:00:31]} Bc5+ {[%emt 0:00:22]} 56. Kh1 {[%emt 0:00:05]} g2+ {[%emt 0:00:08]} 57. Kh2 {[%emt 0:00:08]} g1=Q+ {[%emt 0:00:11]} 58. Kh3 {[%emt 0:00:40]} Qh1# {[%emt 0:00:30]} 0-1

[Event "DVM U14 2021"]
[Site "Willingen"]
[Date "2022.08.15"]
[Round "6"]
[White "Tran, Anh Duc Kevin"]
[Black "Vesszö, Aaron"]
[Result "1-0"]
[ECO "C01"]
[WhiteElo "1398"]
[BlackElo "1306"]
[Annotator "NA RC"]
[PlyCount "65"]
[EventDate "2022.08.12"]
[EventType "team-tourn"]
[EventRounds "7"]
[EventCountry "GER"]
[SourceTitle "playchess.com"]
[Source "ChessBase"]
[SourceQuality "1"]
[TimeControl "40/5400+30:1800+30"]

1. e4 {[%emt 0:00:10]} e6 {[%emt 0:00:00]} 2. d4 {[%emt 0:00:31]} d5 {[%emt 0:03:22]} 3. exd5 {[%emt 0:00:47]} exd5 {[%emt 0:00:59]} 4. Nf3 {[%emt 0:00:23]} Bd6 {[%emt 0:01:57]} 5. c4 {[%emt 0:02:10]} c6 {[%emt 0:00:51]} 6. Nc3 {[%emt 0:01:33]} Ne7 {[%emt 0:02:13]} 7. Bd3 {[%emt 0:00:46]} O-O {[%emt 0:00:40]} 8. O-O {[%emt 0:03:55]} f6 {[%emt 0:01:26]} 9. Qc2 {[%emt 0:02:12]} g6 {[%emt 0:01:05]} 10. Re1 {[%emt 0:01:05]} Bf5 {[%emt 0:01:35]} 11. Bxf5 {[%emt 0:00:13]} Nxf5 {[%emt 0:01:11]} 12. cxd5 {[%emt 0:00:29]} cxd5 {[%emt 0:04:32]} 13. Qb3 {[%emt 0:07:34]} Ne7 {[%emt 0:01:50]} 14. Qxb7 {[%emt 0:01:11]} Nbc6 {[%emt 0:04:05]} 15. Qb3 {[%emt 0:01:21]} Rb8 {[%emt 0:00:53]} 16. Qd1 {[%emt 0:06:36]} Nf5 {[%emt 0:01:38]} 17. b3 {[%emt 0:01:27]} Bb4 {[%emt 0:00:45]} 18. Bb2 {[%emt 0:10:54]} Qa5 {[%emt 0:07:12]} 19. Qd2 {[%emt 0:05:11]} Qb6 {[%emt 0:03:37]} 20. Rad1 {[%emt 0:01:13]} Rfe8 {[%emt 0:00:47]} 21. Rxe8+ {[%emt 0:00:13]} Rxe8 {[%emt 0:02:36]} 22. h3 {[%emt 0:03:18]} Ncxd4 {[%emt 0:02:20]} 23. Nxd4 {[%emt 0:00:40]} Nxd4 {[%emt 0:00:59]} 24. Qxd4 {[%emt 0:03:16]} Re1+ {[%emt 0:01:03]} 25. Kh2 {[%emt 0:02:38]} Qxd4 {[%emt 0:00:38]} 26. Rxd4 {[%emt 0:02:14]} Bd6+ {[%emt 0:02:05]} 27. g3 {[%emt 0:04:29]} Be5 {[%emt 0:04:23]} 28. Rxd5 {[%emt 0:01:07]} Bxc3 {[%emt 0:00:12]} 29. Bxc3 {[%emt 0:00:11]} Re2 {[%emt 0:00:11]} 30. Rd2 {[%emt 0:00:44]} Rxd2 {[%emt 0:00:05]} 31. Bxd2 {[%emt 0:00:11]} a6 {[%emt 0:00:19]} 32. b4 {[%emt 0:00:22]} f5 {[%emt 0:00:09]} 33. a4 {[%emt 0:01:14]} 1-0

[Event "DVM U14 2021"]
[Site "Willingen"]
[Date "2022.08.15"]
[Round "6"]
[White "Leonard, Etienne Peter"]
[Black "Blankenburg, Philipp"]
[Result "1-0"]
[ECO "E00"]
[WhiteElo "1373"]
[BlackElo "1148"]
[Annotator "NA RC"]
[PlyCount "51"]
[EventDate "2022.08.12"]
[EventType "team-tourn"]
[EventRounds "7"]
[EventCountry "GER"]
[SourceTitle "playchess.com"]
[Source "ChessBase"]
[SourceQuality "1"]
[TimeControl "40/5400+30:1800+30"]

1. d4 {[%emt 0:00:08]} Nf6 {[%emt 0:00:14]} 2. c4 {[%emt 0:00:11]} e6 {[%emt 0:00:19]} 3. g3 {[%emt 0:00:19]} b6 {[%emt 0:00:18]} 4. Bg2 {[%emt 0:00:16]} Nc6 {[%emt 0:00:12]} 5. Nf3 {[%emt 0:00:12]} Bb7 {[%emt 0:00:16]} 6. O-O {[%emt 0:00:36]} d5 {[%emt 0:00:23]} 7. cxd5 {[%emt 0:00:36]} exd5 {[%emt 0:00:27]} 8. Nc3 {[%emt 0:01:09]} Bd6 {[%emt 0:00:59]} 9. Re1 {[%emt 0:02:55]} O-O {[%emt 0:01:54]} 10. e4 {[%emt 0:01:15]} dxe4 {[%emt 0:02:38]} 11. Nxe4 {[%emt 0:00:14]} Re8 {[%emt 0:01:11]} 12. Nxf6+ {[%emt 0:00:33]} Qxf6 {[%emt 0:01:08]} 13. Bg5 {[%emt 0:00:22]} Qg6 {[%emt 0:01:33]} 14. Qd2 {[%emt 0:01:07]} Bb4 {[%emt 0:07:19]} 15. Rxe8+ {[%emt 0:00:17]} Rxe8 {[%emt 0:00:12]} 16. Qd1 {[%emt 0:00:48]} Ne7 {[%emt 0:06:29]} 17. Bxe7 {[%emt 0:01:06]} Rxe7 {[%emt 0:00:13]} 18. Ne5 {[%emt 0:00:25]} Qe6 {[%emt 0:08:31]} 19. Bxb7 {[%emt 0:00:57]} f6 {[%emt 0:02:21]} 20. Nd3 {[%emt 0:00:55]} Ba5 {[%emt 0:05:33]} 21. Nf4 {[%emt 0:01:38]} Qc4 {[%emt 0:05:10]} 22. Bd5+ {[%emt 0:00:18]} Qxd5 {[%emt 0:01:02]} 23. Nxd5 {[%emt 0:00:08]} Re1+ {[%emt 0:00:15]} 24. Qxe1 {[%emt 0:00:12]} Bxe1 {[%emt 0:00:06]} 25. Rxe1 {[%emt 0:00:06]} Kf7 {[%emt 0:00:07]} 26. Re7+ {[%emt 0:00:05]} 1-0